[Event "Titled Tuesday Blitz October 11 Early 2022"]
[White "Ovchinnikov, Vsevolod"]
[Black "Mikhailovsky, Vladimir"]
[WhiteFideId "24176842"]
[BlackFideId "34105414"]
[WhiteElo "2376"]
[BlackElo "2297"]
[Result "1-0"]
[Round "07"]
[TimeControl "180+1"]
[Date "2022.10.12"]
[WhiteClock "0:00:09"]
[BlackClock "0:00:02"]

1. d4 {[%clk 0:03:00]}  d6 {[%clk 0:02:57]} 2. Nf3 {[%clk 0:03:00]}  Nf6 {[%clk 0:02:54]} 3. b3 {[%clk 0:03:01]}  g6 {[%clk 0:02:48]} 4. Bb2 {[%clk 0:03:01]}  Bg7 {[%clk 0:02:49]} 5. g3 {[%clk 0:03:02]}  O-O {[%clk 0:02:50]} 6. Bg2 {[%clk 0:03:03]}  Bf5 {[%clk 0:02:46]} 7. Nbd2 {[%clk 0:03:01]}  c6 {[%clk 0:02:46]} 8. Nh4 {[%clk 0:03:00]}  Bc8 {[%clk 0:02:32]} 9. O-O {[%clk 0:02:51]}  d5 {[%clk 0:02:32]} 10. c4 {[%clk 0:02:50]}  Be6 {[%clk 0:02:20]} 11. Qc2 {[%clk 0:02:44]}  Nbd7 {[%clk 0:02:19]} 12. Rad1 {[%clk 0:02:34]}  Qa5 {[%clk 0:02:14]} 13. Bc3 {[%clk 0:02:30]}  Qa3 {[%clk 0:02:02]} 14. h3 {[%clk 0:02:12]}  Rfd8 {[%clk 0:01:57]} 15. g4 {[%clk 0:02:09]}  Rac8 {[%clk 0:01:53]} 16. c5 {[%clk 0:02:02]}  Ne4 {[%clk 0:01:11]} 17. Nxe4 {[%clk 0:01:40]}  dxe4 {[%clk 0:01:12]} 18. Bxe4 {[%clk 0:01:39]}  Nf6 {[%clk 0:01:12]} 19. Bg2 {[%clk 0:01:23]}  Nd5 {[%clk 0:01:06]} 20. e3 {[%clk 0:01:06]}  b6 {[%clk 0:00:38]} 21. Bb2 {[%clk 0:00:35]}  Qxa2 {[%clk 0:00:27]} 22. Ra1 {[%clk 0:00:35]}  Nb4 {[%clk 0:00:27]} 23. Qd2 {[%clk 0:00:32]}  Qxb3 {[%clk 0:00:26]} 24. Ra3 {[%clk 0:00:31]}  Qc4 {[%clk 0:00:15]} 25. Rc1 {[%clk 0:00:30]}  Qb5 {[%clk 0:00:09]} 26. Bf1 {[%clk 0:00:29]}  Qxc5 {[%clk 0:00:02]} 27. Rxc5 {[%clk 0:00:27]}  bxc5 {[%clk 0:00:02]} 28. Rxa7 {[%clk 0:00:24]}  Nd5 {[%clk 0:00:01]} 29. Nf3 {[%clk 0:00:20]}  cxd4 {[%clk 0:00:01]} 30. Bxd4 {[%clk 0:00:19]}  Nc7 {[%clk 0:00:02]} 31. Qc1 {[%clk 0:00:17]}  Nb5 {[%clk 0:00:02]} 32. Ra4 {[%clk 0:00:14]}  Nd6 {[%clk 0:00:02]} 33. Bxg7 {[%clk 0:00:14]}  Kxg7 {[%clk 0:00:03]} 34. Ra6 {[%clk 0:00:14]}  Kg8 {[%clk 0:00:04]} 35. Rxc6 {[%clk 0:00:13]}  Rb8 {[%clk 0:00:04]} 36. Rc7 {[%clk 0:00:13]}  Bd5 {[%clk 0:00:05]} 37. Nd4 {[%clk 0:00:13]}  Be4 {[%clk 0:00:03]} 38. Rxe7 {[%clk 0:00:12]}  Rb1 {[%clk 0:00:04]} 39. Qc7 {[%clk 0:00:11]}  Nb7 {[%clk 0:00:04]} 40. Rxe4 {[%clk 0:00:11]}  Rc1 {[%clk 0:00:03]} 41. Qxb7 {[%clk 0:00:10]}  Rdc8 {[%clk 0:00:02]} 42. Rf4 {[%clk 0:00:10]}  R1c7 {[%clk 0:00:02]} 43. Qd5 {[%clk 0:00:09]}  Rd8 {[%clk 0:00:02]} 44. Qxd8+ {[%clk 0:00:09]} 1-0


[Site "https://www.chess.com"]

[Event "Titled Tuesday Blitz October 11 Early 2022"]
[White "Pakleza, Zbigniew"]
[Black "Bluebaum, Matthias"]
[WhiteFideId "1119290"]
[BlackFideId "24651516"]
[WhiteElo "2411"]
[BlackElo "2633"]
[Result "1-0"]
[Round "07"]
[TimeControl "180+1"]
[Date "2022.10.11"]
[WhiteClock "0:00:14"]
[BlackClock "0:00:03"]

1. d4 {[%clk 0:03:00]}  Nf6 {[%clk 0:03:00]} 2. Nf3 {[%clk 0:03:01]}  d5 {[%clk 0:03:00]} 3. Bf4 {[%clk 0:03:01]}  c5 {[%clk 0:03:01]} 4. c3 {[%clk 0:03:01]}  Nc6 {[%clk 0:03:01]} 5. Nbd2 {[%clk 0:03:01]}  Bf5 {[%clk 0:02:59]} 6. Qb3 {[%clk 0:02:53]}  Qc8 {[%clk 0:02:55]} 7. e3 {[%clk 0:02:42]}  e6 {[%clk 0:02:51]} 8. Nh4 {[%clk 0:02:38]}  Be4 {[%clk 0:02:51]} 9. Nxe4 {[%clk 0:02:35]}  dxe4 {[%clk 0:02:51]} 10. g3 {[%clk 0:01:48]}  Be7 {[%clk 0:02:35]} 11. Bg5 {[%clk 0:01:38]}  h6 {[%clk 0:02:14]} 12. Bxf6 {[%clk 0:01:36]}  Bxf6 {[%clk 0:02:15]} 13. Ng2 {[%clk 0:01:35]}  O-O {[%clk 0:02:15]} 14. Rd1 {[%clk 0:01:05]}  Rd8 {[%clk 0:01:57]} 15. Be2 {[%clk 0:01:03]}  a6 {[%clk 0:01:28]} 16. O-O {[%clk 0:01:02]}  b5 {[%clk 0:01:29]} 17. dxc5 {[%clk 0:00:49]}  Be7 {[%clk 0:01:29]} 18. Qc2 {[%clk 0:00:44]}  f5 {[%clk 0:01:29]} 19. b4 {[%clk 0:00:44]}  e5 {[%clk 0:01:26]} 20. Qb3+ {[%clk 0:00:40]}  Kh8 {[%clk 0:01:24]} 21. Bh5 {[%clk 0:00:34]}  Rf8 {[%clk 0:01:13]} 22. Rd2 {[%clk 0:00:25]}  a5 {[%clk 0:00:55]} 23. a3 {[%clk 0:00:26]}  axb4 {[%clk 0:00:55]} 24. axb4 {[%clk 0:00:27]}  Ra4 {[%clk 0:00:39]} 25. Be2 {[%clk 0:00:24]}  Qa6 {[%clk 0:00:31]} 26. Qe6 {[%clk 0:00:24]}  Ra3 {[%clk 0:00:18]} 27. c4 {[%clk 0:00:18]}  bxc4 {[%clk 0:00:03]} 28. Bxc4 {[%clk 0:00:18]}  Qb7 {[%clk 0:00:03]} 29. b5 {[%clk 0:00:14]}  Nb4 {[%clk 0:00:04]} 30. Rd7 {[%clk 0:00:14]}  Qc8 {[%clk 0:00:04]} 31. Qxe7 {[%clk 0:00:13]}  Rg8 {[%clk 0:00:02]} 32. Bxg8 {[%clk 0:00:13]}  Qf8 {[%clk 0:00:03]} 33. Qxf8 {[%clk 0:00:13]}  g5 {[%clk 0:00:03]} 34. Qg7# {[%clk 0:00:14]} 1-0


[Site "https://www.chess.com"]

[Event "Titled Tuesday Blitz October 11 Early 2022"]
[White "Papasimakopoulos, Alexandros"]
[Black "Azadaliyev, Jahandar"]
[WhiteFideId "4244125"]
[BlackFideId "13425811"]
[WhiteElo "2357"]
[BlackElo "2204"]
[Result "1-0"]
[Round "07"]
[TimeControl "180+1"]
[Date "2022.10.12"]
[WhiteClock "0:01:51"]
[BlackClock "0:01:47"]

1. d4 {[%clk 0:02:52]}  Nf6 {[%clk 0:02:59]} 2. c4 {[%clk 0:02:51]}  e6 {[%clk 0:02:59]} 3. Nc3 {[%clk 0:02:51]}  Bb4 {[%clk 0:02:59]} 4. Qc2 {[%clk 0:02:51]}  O-O {[%clk 0:03:00]} 5. a3 {[%clk 0:02:50]}  Bxc3+ {[%clk 0:03:00]} 6. Qxc3 {[%clk 0:02:51]}  d5 {[%clk 0:03:00]} 7. Nf3 {[%clk 0:02:51]}  h6 {[%clk 0:02:58]} 8. Bf4 {[%clk 0:02:48]}  Nbd7 {[%clk 0:02:58]} 9. e3 {[%clk 0:02:48]}  b6 {[%clk 0:02:57]} 10. b4 {[%clk 0:02:47]}  Bb7 {[%clk 0:02:58]} 11. c5 {[%clk 0:02:47]}  Ne4 {[%clk 0:02:56]} 12. Qc2 {[%clk 0:02:45]}  c6 {[%clk 0:02:56]} 13. Bd3 {[%clk 0:02:44]}  f5 {[%clk 0:02:52]} 14. Ne5 {[%clk 0:02:44]}  Nxe5 {[%clk 0:02:49]} 15. Bxe5 {[%clk 0:02:45]}  b5 {[%clk 0:02:44]} 16. a4 {[%clk 0:02:41]}  a5 {[%clk 0:02:39]} 17. axb5 {[%clk 0:02:42]}  axb4 {[%clk 0:02:37]} 18. O-O {[%clk 0:02:42]}  b3 {[%clk 0:02:32]} 19. Qb2 {[%clk 0:02:33]}  Qd7 {[%clk 0:02:27]} 20. f3 {[%clk 0:02:29]}  Nf6 {[%clk 0:02:25]} 21. Qxb3 {[%clk 0:02:23]}  cxb5 {[%clk 0:02:25]} 22. Bxb5 {[%clk 0:02:19]}  Bc6 {[%clk 0:02:25]} 23. Bd3 {[%clk 0:02:19]}  Qf7 {[%clk 0:02:20]} 24. Qb6 {[%clk 0:02:19]}  Rac8 {[%clk 0:02:13]} 25. Ra7 {[%clk 0:02:18]}  Nd7 {[%clk 0:02:12]} 26. Qa5 {[%clk 0:02:12]}  Qh5 {[%clk 0:02:09]} 27. Bd6 {[%clk 0:02:12]}  Rf6 {[%clk 0:02:04]} 28. Ba6 {[%clk 0:02:12]}  Re8 {[%clk 0:02:01]} 29. Bb5 {[%clk 0:02:10]}  Bxb5 {[%clk 0:01:49]} 30. Qxb5 {[%clk 0:02:10]}  Nf8 {[%clk 0:01:48]} 31. Be5 {[%clk 0:02:05]}  Rg6 {[%clk 0:01:47]} 32. Qxe8 {[%clk 0:01:51]} 1-0


[Site "https://www.chess.com"]

[Event "Titled Tuesday Blitz October 11 Early 2022"]
[White "Pimpalkhare, Vedant"]
[Black "Zilleruelo Irizarry, Diego"]
[WhiteFideId "25048236"]
[BlackFideId "3101460"]
[WhiteElo "2182"]
[BlackElo "1998"]
[Result "1-0"]
[Round "07"]
[TimeControl "180+1"]
[Date "2022.10.12"]
[WhiteClock "0:01:07"]
[BlackClock "0:00:02"]

1. d4 {[%clk 0:03:00]}  d5 {[%clk 0:02:57]} 2. Nf3 {[%clk 0:03:00]}  Nf6 {[%clk 0:02:52]} 3. g3 {[%clk 0:03:00]}  e6 {[%clk 0:02:53]} 4. Bg2 {[%clk 0:03:00]}  Be7 {[%clk 0:02:53]} 5. O-O {[%clk 0:03:00]}  O-O {[%clk 0:02:54]} 6. c4 {[%clk 0:03:00]}  c6 {[%clk 0:02:54]} 7. Nbd2 {[%clk 0:03:00]}  b6 {[%clk 0:02:40]} 8. Qc2 {[%clk 0:03:00]}  Ba6 {[%clk 0:02:32]} 9. b3 {[%clk 0:02:55]}  Nbd7 {[%clk 0:02:28]} 10. e4 {[%clk 0:02:54]}  c5 {[%clk 0:02:09]} 11. exd5 {[%clk 0:02:52]}  exd5 {[%clk 0:02:09]} 12. Rd1 {[%clk 0:02:39]}  Rc8 {[%clk 0:02:02]} 13. dxc5 {[%clk 0:02:38]}  Bxc5 {[%clk 0:02:00]} 14. Bb2 {[%clk 0:02:34]}  dxc4 {[%clk 0:01:58]} 15. bxc4 {[%clk 0:02:29]}  Re8 {[%clk 0:01:40]} 16. Nb3 {[%clk 0:02:19]}  Qc7 {[%clk 0:01:33]} 17. Ng5 {[%clk 0:02:16]}  h6 {[%clk 0:01:18]} 18. Ne4 {[%clk 0:02:02]}  Nxe4 {[%clk 0:01:12]} 19. Bxe4 {[%clk 0:02:03]}  Nf8 {[%clk 0:00:57]} 20. Bd5 {[%clk 0:01:50]}  Bd6 {[%clk 0:00:35]} 21. Re1 {[%clk 0:01:41]}  Bb7 {[%clk 0:00:30]} 22. Qc3 {[%clk 0:01:38]}  Ne6 {[%clk 0:00:17]} 23. Qf3 {[%clk 0:01:29]}  Bxd5 {[%clk 0:00:15]} 24. cxd5 {[%clk 0:01:30]}  Nc5 {[%clk 0:00:15]} 25. Nd4 {[%clk 0:01:28]}  Qd7 {[%clk 0:00:15]} 26. Nf5 {[%clk 0:01:27]}  Rxe1+ {[%clk 0:00:13]} 27. Rxe1 {[%clk 0:01:26]}  Bf8 {[%clk 0:00:13]} 28. h4 {[%clk 0:01:15]}  Re8 {[%clk 0:00:12]} 29. Rd1 {[%clk 0:01:13]}  Ne4 {[%clk 0:00:10]} 30. Qg4 {[%clk 0:01:10]}  Kh7 {[%clk 0:00:06]} 31. Bxg7 {[%clk 0:01:09]}  Nd6 {[%clk 0:00:02]} 32. Bxf8 {[%clk 0:01:08]}  Qxf5 {[%clk 0:00:02]} 33. Qg7# {[%clk 0:01:07]} 1-0


[Site "https://www.chess.com"]

[Event "Titled Tuesday Blitz October 11 Early 2022"]
[White "Predke, Alexandr"]
[Black "Heinemann, Josefine"]
[WhiteFideId "24107581"]
[BlackFideId "12900460"]
[WhiteElo "2614"]
[BlackElo "2300"]
[Result "1-0"]
[Round "07"]
[TimeControl "180+1"]
[Date "2022.10.12"]
[WhiteClock "0:01:42"]
[BlackClock "0:01:20"]

1. Nf3 {[%clk 0:03:00]}  d5 {[%clk 0:02:56]} 2. g3 {[%clk 0:03:00]}  c6 {[%clk 0:02:55]} 3. Bg2 {[%clk 0:03:00]}  Nf6 {[%clk 0:02:54]} 4. O-O {[%clk 0:03:00]}  g6 {[%clk 0:02:53]} 5. d4 {[%clk 0:02:58]}  Bg7 {[%clk 0:02:53]} 6. a4 {[%clk 0:02:59]}  O-O {[%clk 0:02:52]} 7. a5 {[%clk 0:02:59]}  Bf5 {[%clk 0:02:51]} 8. Bf4 {[%clk 0:03:00]}  a6 {[%clk 0:02:48]} 9. Nbd2 {[%clk 0:02:58]}  Ne4 {[%clk 0:02:44]} 10. c3 {[%clk 0:02:55]}  Nxd2 {[%clk 0:02:42]} 11. Nxd2 {[%clk 0:02:51]}  Nd7 {[%clk 0:02:42]} 12. e4 {[%clk 0:02:39]}  dxe4 {[%clk 0:02:42]} 13. Nxe4 {[%clk 0:02:40]}  e5 {[%clk 0:02:20]} 14. Bg5 {[%clk 0:02:29]}  f6 {[%clk 0:02:20]} 15. Be3 {[%clk 0:02:27]}  exd4 {[%clk 0:02:18]} 16. Bxd4 {[%clk 0:02:20]}  Re8 {[%clk 0:02:12]} 17. Nd6 {[%clk 0:02:17]}  Rf8 {[%clk 0:01:59]} 18. Qb3+ {[%clk 0:02:14]}  Kh8 {[%clk 0:01:54]} 19. Nf7+ {[%clk 0:02:11]}  Rxf7 {[%clk 0:01:53]} 20. Qxf7 {[%clk 0:02:11]}  Qc7 {[%clk 0:01:46]} 21. Bb6 {[%clk 0:02:06]}  Qd6 {[%clk 0:01:38]} 22. Rad1 {[%clk 0:02:03]}  Qe6 {[%clk 0:01:33]} 23. Qxe6 {[%clk 0:01:56]}  Bxe6 {[%clk 0:01:32]} 24. Rfe1 {[%clk 0:01:56]}  Bg4 {[%clk 0:01:30]} 25. f3 {[%clk 0:01:51]}  Bf5 {[%clk 0:01:24]} 26. g4 {[%clk 0:01:44]}  Nxb6 {[%clk 0:01:22]} 27. axb6 {[%clk 0:01:45]}  Bc2 {[%clk 0:01:20]} 28. Rd7 {[%clk 0:01:42]} 1-0


[Site "https://www.chess.com"]

[Event "Titled Tuesday Blitz October 11 Early 2022"]
[White "Prokofiev, Valentyn"]
[Black "Indjic, Aleksandar"]
[WhiteFideId "14160161"]
[BlackFideId "911925"]
[WhiteElo "2259"]
[BlackElo "2592"]
[Result "1-0"]
[Round "07"]
[TimeControl "180+1"]
[Date "2022.10.12"]
[WhiteClock "0:01:12"]
[BlackClock "0:02:03"]

1. d4 {[%clk 0:02:57]}  Nf6 {[%clk 0:02:57]} 2. c4 {[%clk 0:02:57]}  c5 {[%clk 0:02:57]} 3. d5 {[%clk 0:02:57]}  e6 {[%clk 0:02:58]} 4. Nf3 {[%clk 0:02:56]}  d6 {[%clk 0:02:57]} 5. Nc3 {[%clk 0:02:54]}  exd5 {[%clk 0:02:57]} 6. cxd5 {[%clk 0:02:54]}  g6 {[%clk 0:02:58]} 7. e4 {[%clk 0:02:55]}  a6 {[%clk 0:02:57]} 8. a4 {[%clk 0:02:54]}  Bg4 {[%clk 0:02:58]} 9. Be2 {[%clk 0:02:53]}  Bxf3 {[%clk 0:02:58]} 10. Bxf3 {[%clk 0:02:54]}  Nbd7 {[%clk 0:02:58]} 11. O-O {[%clk 0:02:54]}  Bg7 {[%clk 0:02:58]} 12. Be2 {[%clk 0:02:51]}  O-O {[%clk 0:02:57]} 13. f4 {[%clk 0:02:52]}  Re8 {[%clk 0:02:57]} 14. Bf3 {[%clk 0:02:52]}  c4 {[%clk 0:02:56]} 15. Be3 {[%clk 0:02:50]}  Nxe4 {[%clk 0:02:48]} 16. Nxe4 {[%clk 0:02:48]}  f5 {[%clk 0:02:47]} 17. Nxd6 {[%clk 0:02:42]}  Rxe3 {[%clk 0:02:46]} 18. Nxc4 {[%clk 0:02:43]}  Re8 {[%clk 0:02:42]} 19. d6 {[%clk 0:02:41]}  Rb8 {[%clk 0:02:42]} 20. Qd5+ {[%clk 0:02:36]}  Kh8 {[%clk 0:02:41]} 21. Rae1 {[%clk 0:02:37]}  Rxe1 {[%clk 0:02:23]} 22. Rxe1 {[%clk 0:02:37]}  Nb6 {[%clk 0:02:23]} 23. Nxb6 {[%clk 0:02:05]}  Qxb6+ {[%clk 0:02:24]} 24. Kh1 {[%clk 0:02:06]}  Qb4 {[%clk 0:02:21]} 25. Rd1 {[%clk 0:01:48]}  Qxf4 {[%clk 0:02:18]} 26. d7 {[%clk 0:01:49]}  Rd8 {[%clk 0:02:17]} 27. Re1 {[%clk 0:01:41]}  h5 {[%clk 0:02:05]} 28. Re8+ {[%clk 0:01:19]}  Kh7 {[%clk 0:02:05]} 29. Rxd8 {[%clk 0:01:16]}  Be5 {[%clk 0:02:03]} 30. Rh8+ {[%clk 0:01:12]} 1-0


[Site "https://www.chess.com"]

[Event "Titled Tuesday Blitz October 11 Early 2022"]
[White "Reprintsev, Alexander"]
[Black "Ovezdurdyyeva, Jemal"]
[WhiteFideId "14100541"]
[BlackFideId "14001888"]
[WhiteElo "2230"]
[BlackElo "1961"]
[Result "0-1"]
[Round "07"]
[TimeControl "180+1"]
[Date "2022.10.12"]
[WhiteClock "0:00:13"]
[BlackClock "0:00:44"]

1. e4 {[%clk 0:02:52]}  d6 {[%clk 0:02:59]} 2. d4 {[%clk 0:02:51]}  Nf6 {[%clk 0:02:59]} 3. Nc3 {[%clk 0:02:49]}  g6 {[%clk 0:02:59]} 4. h4 {[%clk 0:02:48]}  h5 {[%clk 0:02:57]} 5. Nf3 {[%clk 0:02:47]}  c6 {[%clk 0:02:55]} 6. Ng5 {[%clk 0:02:47]}  b5 {[%clk 0:02:52]} 7. f3 {[%clk 0:02:46]}  Bg7 {[%clk 0:02:49]} 8. Be3 {[%clk 0:02:46]}  a6 {[%clk 0:02:40]} 9. a4 {[%clk 0:02:42]}  b4 {[%clk 0:02:32]} 10. Na2 {[%clk 0:02:40]}  a5 {[%clk 0:02:32]} 11. Nc1 {[%clk 0:02:40]}  Nbd7 {[%clk 0:02:28]} 12. Nb3 {[%clk 0:02:39]}  Nf8 {[%clk 0:02:22]} 13. Bc4 {[%clk 0:02:35]}  d5 {[%clk 0:02:16]} 14. exd5 {[%clk 0:02:32]}  cxd5 {[%clk 0:02:15]} 15. Bb5+ {[%clk 0:02:30]}  Bd7 {[%clk 0:02:12]} 16. Qe2 {[%clk 0:02:30]}  Rb8 {[%clk 0:02:05]} 17. Bxd7+ {[%clk 0:01:37]}  N8xd7 {[%clk 0:02:02]} 18. Qa6 {[%clk 0:01:24]}  Qc7 {[%clk 0:01:45]} 19. O-O-O {[%clk 0:00:32]}  O-O {[%clk 0:01:37]} 20. Qxa5 {[%clk 0:00:31]}  Qc6 {[%clk 0:01:29]} 21. Nc5 {[%clk 0:00:26]}  Rfc8 {[%clk 0:01:15]} 22. Qa6 {[%clk 0:00:21]}  Rb6 {[%clk 0:01:05]} 23. Qd3 {[%clk 0:00:18]}  b3 {[%clk 0:00:48]} 24. Nxb3 {[%clk 0:00:15]}  Qxa4 {[%clk 0:00:46]} 25. g4 {[%clk 0:00:13]}  Rxb3 {[%clk 0:00:44]} 0-1


[Site "https://www.chess.com"]

[Event "Titled Tuesday Blitz October 11 Early 2022"]
[White "Samaganova, Aleksandra"]
[Black "Buscar, Michael"]
[WhiteFideId "13800221"]
[BlackFideId "2603616"]
[WhiteElo "1864"]
[BlackElo "2010"]
[Result "1-0"]
[Round "07"]
[TimeControl "180+1"]
[Date "2022.10.12"]
[WhiteClock "0:00:05"]
[BlackClock "0:00:01"]

1. c4 {[%clk 0:03:00]}  e5 {[%clk 0:02:47]} 2. Nc3 {[%clk 0:03:00]}  Nc6 {[%clk 0:02:45]} 3. g3 {[%clk 0:03:00]}  g6 {[%clk 0:02:45]} 4. Bg2 {[%clk 0:03:00]}  Bg7 {[%clk 0:02:46]} 5. e3 {[%clk 0:03:01]}  Nge7 {[%clk 0:02:47]} 6. Nge2 {[%clk 0:03:01]}  O-O {[%clk 0:02:46]} 7. O-O {[%clk 0:03:01]}  d6 {[%clk 0:02:47]} 8. d3 {[%clk 0:03:01]}  f5 {[%clk 0:02:45]} 9. Rb1 {[%clk 0:02:59]}  Be6 {[%clk 0:02:43]} 10. Nd5 {[%clk 0:02:59]}  Qd7 {[%clk 0:02:40]} 11. Nec3 {[%clk 0:02:58]}  Nd8 {[%clk 0:02:40]} 12. b4 {[%clk 0:02:56]}  c6 {[%clk 0:02:40]} 13. Nxe7+ {[%clk 0:02:56]}  Qxe7 {[%clk 0:02:41]} 14. b5 {[%clk 0:02:56]}  Kh8 {[%clk 0:02:37]} 15. a4 {[%clk 0:02:54]}  g5 {[%clk 0:02:24]} 16. bxc6 {[%clk 0:02:43]}  bxc6 {[%clk 0:02:23]} 17. Bd2 {[%clk 0:02:28]}  Rc8 {[%clk 0:02:17]} 18. f4 {[%clk 0:02:11]}  e4 {[%clk 0:02:02]} 19. Qc2 {[%clk 0:02:02]}  gxf4 {[%clk 0:01:53]} 20. gxf4 {[%clk 0:02:01]}  Qf7 {[%clk 0:01:53]} 21. dxe4 {[%clk 0:01:47]}  Bxc4 {[%clk 0:01:47]} 22. Rf2 {[%clk 0:01:43]}  fxe4 {[%clk 0:01:44]} 23. Nxe4 {[%clk 0:01:31]}  Qg6 {[%clk 0:01:00]} 24. Qxc4 {[%clk 0:00:54]}  d5 {[%clk 0:00:59]} 25. Qb4 {[%clk 0:00:55]}  dxe4 {[%clk 0:00:54]} 26. Qxe4 {[%clk 0:00:53]}  Qg4 {[%clk 0:00:40]} 27. Kh1 {[%clk 0:00:35]}  c5 {[%clk 0:00:33]} 28. Bf3 {[%clk 0:00:34]}  Qd7 {[%clk 0:00:32]} 29. Rg2 {[%clk 0:00:26]}  c4 {[%clk 0:00:31]} 30. Bb4 {[%clk 0:00:24]}  Re8 {[%clk 0:00:27]} 31. Qc2 {[%clk 0:00:21]}  Qd3 {[%clk 0:00:21]} 32. Bg4 {[%clk 0:00:06]}  Rb8 {[%clk 0:00:15]} 33. Bf5 {[%clk 0:00:06]}  Qxc2 {[%clk 0:00:12]} 34. Bxc2 {[%clk 0:00:07]}  Rxe3 {[%clk 0:00:11]} 35. Bd6 {[%clk 0:00:05]}  Rxb1+ {[%clk 0:00:09]} 36. Bxb1 {[%clk 0:00:05]}  c3 {[%clk 0:00:01]} 37. Rg1 {[%clk 0:00:05]} 1-0


[Site "https://www.chess.com"]

[Event "Titled Tuesday Blitz October 11 Early 2022"]
[White "Samarth, J Rao"]
[Black "Zhao, Jun"]
[WhiteFideId "46652370"]
[BlackFideId "8602522"]
[WhiteElo "1564"]
[BlackElo "2547"]
[Result "0-1"]
[Round "07"]
[TimeControl "180+1"]
[Date "2022.10.12"]
[WhiteClock "0:00:15"]
[BlackClock "0:00:30"]

1. c4 {[%clk 0:02:52]}  Nf6 {[%clk 0:02:13]} 2. Nc3 {[%clk 0:02:48]}  g6 {[%clk 0:02:14]} 3. d4 {[%clk 0:02:47]}  Bg7 {[%clk 0:02:14]} 4. e4 {[%clk 0:02:47]}  d6 {[%clk 0:02:14]} 5. f4 {[%clk 0:02:43]}  O-O {[%clk 0:02:14]} 6. Nf3 {[%clk 0:02:40]}  c5 {[%clk 0:02:14]} 7. d5 {[%clk 0:02:40]}  e6 {[%clk 0:02:15]} 8. Be2 {[%clk 0:02:39]}  exd5 {[%clk 0:02:14]} 9. cxd5 {[%clk 0:02:40]}  Bg4 {[%clk 0:02:15]} 10. h3 {[%clk 0:02:40]}  Bxf3 {[%clk 0:02:15]} 11. Bxf3 {[%clk 0:02:41]}  Na6 {[%clk 0:02:14]} 12. O-O {[%clk 0:02:41]}  Nd7 {[%clk 0:02:13]} 13. g4 {[%clk 0:02:36]}  c4 {[%clk 0:02:12]} 14. Kg2 {[%clk 0:02:31]}  Nac5 {[%clk 0:02:12]} 15. Qc2 {[%clk 0:02:25]}  Nd3 {[%clk 0:02:09]} 16. Rd1 {[%clk 0:02:24]}  N7c5 {[%clk 0:02:09]} 17. Be3 {[%clk 0:02:23]}  Rb8 {[%clk 0:01:54]} 18. a4 {[%clk 0:02:19]}  a6 {[%clk 0:01:49]} 19. a5 {[%clk 0:02:17]}  b5 {[%clk 0:01:46]} 20. axb6 {[%clk 0:02:17]}  Rxb6 {[%clk 0:01:46]} 21. Na4 {[%clk 0:02:08]}  Nxa4 {[%clk 0:01:45]} 22. Bxb6 {[%clk 0:01:55]}  Nxf4+ {[%clk 0:01:38]} 23. Kg3 {[%clk 0:01:54]}  Nxb6 {[%clk 0:01:37]} 24. Kxf4 {[%clk 0:01:54]}  Qh4 {[%clk 0:01:28]} 25. Ke3 {[%clk 0:01:29]}  Qxh3 {[%clk 0:01:27]} 26. Qf2 {[%clk 0:01:23]}  Qh6+ {[%clk 0:01:16]} 27. Ke2 {[%clk 0:01:21]}  Nd7 {[%clk 0:01:17]} 28. Rxa6 {[%clk 0:01:19]}  Be5 {[%clk 0:01:17]} 29. Qe3 {[%clk 0:01:12]}  Bf4 {[%clk 0:01:11]} 30. Qf2 {[%clk 0:01:08]}  Rb8 {[%clk 0:01:10]} 31. Ra2 {[%clk 0:00:56]}  Nc5 {[%clk 0:01:10]} 32. Rh1 {[%clk 0:00:51]}  Qg7 {[%clk 0:01:08]} 33. Rb1 {[%clk 0:00:50]}  Qe5 {[%clk 0:01:02]} 34. Qe1 {[%clk 0:00:41]}  Nd3 {[%clk 0:01:00]} 35. Qg1 {[%clk 0:00:37]}  Bg5 {[%clk 0:00:53]} 36. b3 {[%clk 0:00:26]}  Qc3 {[%clk 0:00:38]} 37. Qd1 {[%clk 0:00:19]}  Ne5 {[%clk 0:00:33]} 38. Kf2 {[%clk 0:00:17]}  cxb3 {[%clk 0:00:32]} 39. Rab2 {[%clk 0:00:15]}  Nd3+ {[%clk 0:00:30]} 0-1


[Site "https://www.chess.com"]

[Event "Titled Tuesday Blitz October 11 Early 2022"]
[White "Saucey, Michel"]
[Black "Lauridsen, Jesper Morch"]
[WhiteFideId "601845"]
[BlackFideId "1401890"]
[WhiteElo "2253"]
[BlackElo "2188"]
[Result "1-0"]
[Round "07"]
[TimeControl "180+1"]
[Date "2022.10.12"]
[WhiteClock "0:00:35"]
[BlackClock "0:00:04"]

1. d4 {[%clk 0:03:00]}  Nf6 {[%clk 0:02:56]} 2. c4 {[%clk 0:03:00]}  c5 {[%clk 0:02:55]} 3. d5 {[%clk 0:02:59]}  e6 {[%clk 0:02:55]} 4. Nc3 {[%clk 0:02:58]}  exd5 {[%clk 0:02:55]} 5. cxd5 {[%clk 0:02:59]}  d6 {[%clk 0:02:56]} 6. Nf3 {[%clk 0:02:59]}  g6 {[%clk 0:02:56]} 7. Nd2 {[%clk 0:03:00]}  Bg7 {[%clk 0:02:54]} 8. e4 {[%clk 0:03:00]}  O-O {[%clk 0:02:54]} 9. Be2 {[%clk 0:03:00]}  Nbd7 {[%clk 0:02:49]} 10. O-O {[%clk 0:02:58]}  a6 {[%clk 0:02:43]} 11. a4 {[%clk 0:02:57]}  Nb6 {[%clk 0:02:30]} 12. h3 {[%clk 0:02:50]}  Rb8 {[%clk 0:02:27]} 13. Re1 {[%clk 0:02:44]}  Nfd7 {[%clk 0:02:19]} 14. a5 {[%clk 0:02:40]}  Na8 {[%clk 0:02:18]} 15. Nc4 {[%clk 0:02:36]}  Qe7 {[%clk 0:02:06]} 16. Bf4 {[%clk 0:02:31]}  Ne5 {[%clk 0:02:06]} 17. Bg3 {[%clk 0:02:26]}  b5 {[%clk 0:01:54]} 18. axb6 {[%clk 0:02:25]}  Nxb6 {[%clk 0:01:25]} 19. Na5 {[%clk 0:02:24]}  Ra8 {[%clk 0:00:41]} 20. f4 {[%clk 0:02:18]}  Ned7 {[%clk 0:00:38]} 21. Qc2 {[%clk 0:02:12]}  Bd4+ {[%clk 0:00:30]} 22. Kh2 {[%clk 0:02:09]}  h5 {[%clk 0:00:28]} 23. Bf3 {[%clk 0:01:57]}  h4 {[%clk 0:00:25]} 24. Bf2 {[%clk 0:01:57]}  Bxf2 {[%clk 0:00:18]} 25. Qxf2 {[%clk 0:01:56]}  Qf6 {[%clk 0:00:17]} 26. Bg4 {[%clk 0:01:50]}  Nb8 {[%clk 0:00:15]} 27. Bxc8 {[%clk 0:01:39]}  Rxc8 {[%clk 0:00:15]} 28. Qf3 {[%clk 0:01:32]}  N6d7 {[%clk 0:00:14]} 29. Re2 {[%clk 0:01:27]}  Re8 {[%clk 0:00:13]} 30. Rae1 {[%clk 0:01:25]}  Ra7 {[%clk 0:00:13]} 31. Nc4 {[%clk 0:01:19]}  Rb7 {[%clk 0:00:11]} 32. e5 {[%clk 0:01:18]}  dxe5 {[%clk 0:00:11]} 33. fxe5 {[%clk 0:01:10]}  Qxf3 {[%clk 0:00:11]} 34. gxf3 {[%clk 0:01:09]}  Nb6 {[%clk 0:00:10]} 35. Nd6 {[%clk 0:01:07]}  Rbe7 {[%clk 0:00:11]} 36. Nxe8 {[%clk 0:01:07]}  Rxe8 {[%clk 0:00:11]} 37. e6 {[%clk 0:01:05]}  fxe6 {[%clk 0:00:10]} 38. Rxe6 {[%clk 0:01:04]}  Rxe6 {[%clk 0:00:10]} 39. Rxe6 {[%clk 0:01:03]}  N8d7 {[%clk 0:00:10]} 40. Rxg6+ {[%clk 0:01:02]}  Kf7 {[%clk 0:00:11]} 41. Rh6 {[%clk 0:01:00]}  Nc4 {[%clk 0:00:09]} 42. Na4 {[%clk 0:00:51]}  Nce5 {[%clk 0:00:08]} 43. Kg2 {[%clk 0:00:48]}  Nf6 {[%clk 0:00:08]} 44. Nxc5 {[%clk 0:00:40]}  Ng6 {[%clk 0:00:08]} 45. d6 {[%clk 0:00:36]}  Kg7 {[%clk 0:00:04]} 46. Rxg6+ {[%clk 0:00:35]}  Kxg6 {[%clk 0:00:04]} 47. d7 {[%clk 0:00:36]}  Nxd7 {[%clk 0:00:04]} 48. Nxd7 {[%clk 0:00:35]}  Kf5 {[%clk 0:00:04]} 49. Kf2 {[%clk 0:00:35]} 1-0


[Site "https://www.chess.com"]